fUSD/lending_fUSD_20260515
["ID","MTS","AMOUNT","RATE_DAILY","PERIOD"]
[422296709,1778797846000,-1817.69,0.000338,14]
[422296711,1778797846000,-163.0,0.00033866,11]
[422296710,1778797846000,-41023.0,0.00033818,30]
[422296695,1778797846000,-521.0,0.00033592,30]
[422296707,1778797846000,-150.0,0.00033767,5]
[422296712,1778797846000,-339.19,0.000339,15]
[422296719,1778797846000,-616.92635506,0.00034123,2]
[422296708,1778797846000,-2209.03,0.000338,30]
[422296718,1778797846000,-41023.0,0.00034023,30]
[422296803,1778797847000,-150.0,0.00034885,7]
[422296793,1778797847000,-150.0,0.00034796,7]
[422296790,1778797847000,-153.24627148,0.00034761,7]
[422296781,1778797847000,-41023.0,0.00034637,30]
[422296789,1778797847000,-41023.0,0.00034739,30]
[422296788,1778797847000,-163.89776066,0.00034726,30]
[422296784,1778797847000,-150.0,0.00034662,7]
[422296791,1778797847000,-150.0,0.00034781,2]
[422296783,1778797847000,-153.24627148,0.00034645,7]
[422296785,1778797847000,-153.24627148,0.00034684,7]
[422296782,1778797847000,-150.0,0.00034645,7]
[422296786,1778797847000,-150.0,0.00034722,7]
[422296787,1778797847000,-153.24627148,0.00034722,7]
[422296806,1778797847000,-153.24627148,0.00034915,7]
[422296805,1778797847000,-1817.69,0.000349,14]
[422296792,1778797847000,-1500.0,0.00034795,2]
[422296794,1778797847000,-153.24627148,0.00034799,7]
[422296795,1778797847000,-150.0,0.00034818,7]
[422296797,1778797847000,-153.24627148,0.00034838,7]
[422296799,1778797847000,-41023.0,0.00034841,30]
[422296798,1778797847000,-151.0,0.00034838,14]
[422296802,1778797847000,-153.24627148,0.00034876,7]
[422296796,1778797847000,-163.0,0.00034826,11]
[422296801,1778797847000,-150.0,0.00034843,7]
[422296800,1778797847000,-150.0,0.00034843,7]
[422296808,1778797847000,-308.39887744,0.00034917,3]
[422296780,1778797847000,-152.0,0.00034636,6]
[422296804,1778797847000,-2209.03,0.000349,30]
[422296777,1778797847000,-150.0,0.0003463,7]
[422296751,1778797847000,-150.0,0.0003448,7]
[422296772,1778797847000,-153.24627148,0.00034568,7]
[422296754,1778797847000,-1078.54,0.000345,7]
[422296749,1778797847000,-150.0,0.00034464,7]
[422296809,1778797847000,-162.59831616,0.00034917,3]
[422296750,1778797847000,-150.0,0.00034472,7]
[422296752,1778797847000,-153.24627148,0.00034491,7]
[422296753,1778797847000,-950.0,0.00034499,7]
[422296756,1778797847000,-376.33,0.00034521,120]
[422296766,1778797847000,-817.0,0.00034539,30]
[422296757,1778797847000,-170.0,0.00034521,100]
[422296755,1778797847000,-607.0,0.00034507,12]
[422296758,1778797847000,-153.24627148,0.0003453,7]
[422296759,1778797847000,-41023.0,0.00034534,30]
[422296765,1778797847000,-211.0,0.00034539,30]
[422296774,1778797847000,-521.0,0.00034592,30]
[422296762,1778797847000,-3041.0,0.00034539,30]
[422296763,1778797847000,-4071.0,0.00034539,30]
[422296761,1778797847000,-384.0,0.00034539,30]
[422296764,1778797847000,-300.0,0.00034539,30]
[422296768,1778797847000,-255.0,0.00034539,30]
[422296770,1778797847000,-1953.0,0.00034539,30]
[422296779,1778797847000,-151.0,0.00034634,14]
[422296771,1778797847000,-500.0,0.00034556,28]
[422296767,1778797847000,-348.0,0.00034539,30]
[422296769,1778797847000,-428.0,0.00034539,30]
[422296778,1778797847000,-158.0,0.00034631,3]
[422296776,1778797847000,-153.24627148,0.00034607,7]
[422296773,1778797847000,-150.0,0.00034571,7]
[422296775,1778797847000,-150.0,0.00034592,7]
[422296760,1778797847000,-208.0,0.00034539,30]
[422296807,1778797847000,-308.39887744,0.00034917,3]
[422296827,1778797847000,-150.0,0.00035115,7]
[422296816,1778797847000,-150.0,0.00034961,7]
[422296833,1778797847000,-150.0,0.00035178,7]
[422296847,1778797847000,-150.0,0.00035387,7]
[422296846,1778797847000,-153.24627148,0.00035376,7]
[422296848,1778797847000,-150.0,0.00035387,7]
[422296849,1778797847000,-153.24627148,0.00035415,7]
[422296850,1778797847000,-153.24627148,0.00035453,7]
[422296852,1778797847000,-150.0,0.00035471,7]
[422296851,1778797847000,-150.0,0.00035458,7]
[422296856,1778797847000,-153.24627148,0.0003553,7]
[422296853,1778797847000,-153.24627148,0.00035492,7]
[422296810,1778797847000,-162.59831616,0.00034917,3]
[422296854,1778797847000,-150.0,0.00035511,7]
[422296857,1778797847000,-208.0,0.00035539,30]
[422296859,1778797847000,-3041.0,0.00035539,30]
[422296858,1778797847000,-384.0,0.00035539,30]
[422296860,1778797847000,-4071.0,0.00035539,30]
[422296864,1778797847000,-348.0,0.00035539,30]
[422296861,1778797847000,-300.0,0.00035539,30]
[422296862,1778797847000,-211.0,0.00035539,30]
[422296863,1778797847000,-817.0,0.00035539,30]
[422296866,1778797847000,-428.0,0.00035539,30]
[422296865,1778797847000,-255.0,0.00035539,30]
[422296867,1778797847000,-1953.0,0.00035539,30]
[422296871,1778797847000,-521.0,0.00035592,30]
[422296869,1778797847000,-150.0,0.00035569,7]
[422296870,1778797847000,-153.24627148,0.00035569,7]
[422296868,1778797847000,-150.0,0.00035569,7]
[422296845,1778797847000,-2289.12,0.00035374,41]
[422296843,1778797847000,-150.0,0.00035338,7]
[422296855,1778797847000,-500.0,0.0003552,120]
[422296842,1778797847000,-153.24627148,0.00035299,7]
[422296844,1778797847000,-153.24627148,0.00035338,7]
[422296813,1778797847000,-153.24627148,0.00034953,7]
[422296811,1778797847000,-200.0,0.00034942,10]
[422296817,1778797847000,-150.0,0.00034992,7]
[422296815,1778797847000,-181.6934164,0.00034954,120]
[422296818,1778797847000,-153.24627148,0.00034992,7]
[422296814,1778797847000,-665.2968157,0.00034954,120]
[422296820,1778797847000,-2810.45,0.00035,30]
[422296826,1778797847000,-153.24627148,0.00035107,7]
[422296828,1778797847000,-150.0,0.00035127,7]
[422296829,1778797847000,-150.0,0.00035146,7]
[422296830,1778797847000,-153.24627148,0.00035146,7]
[422296821,1778797847000,-150.0,0.00035025,7]
[422296819,1778797847000,-61701.16971157,0.00035,7]
[422296812,1778797847000,-41023.0,0.00034943,30]
[422296823,1778797847000,-41023.0,0.00035046,30]
[422296831,1778797847000,-178.39541889,0.00035165,2]
[422296841,1778797847000,-150.0,0.00035293,7]
[422296838,1778797847000,-153.24627148,0.00035222,7]
[422296840,1778797847000,-153.24627148,0.00035261,7]
[422296837,1778797847000,-150.0,0.00035206,7]
[422296836,1778797847000,-1500.0,0.000352,7]
[422296839,1778797847000,-150.0,0.00035251,7]
[422296834,1778797847000,-153.24627148,0.00035184,7]
[422296832,1778797847000,-150.0,0.00035165,7]
[422296825,1778797847000,-153.24627148,0.00035069,7]
[422296824,1778797847000,-607.0,0.00035068,13]
[422296822,1778797847000,-153.24627148,0.0003503,7]
[422296835,1778797847000,-163.89776066,0.00035192,30]
[422296906,1778797848000,-733.01,0.000357,120]
[422296909,1778797848000,-442.73,0.00035704,30]
[422296908,1778797848000,-500.0,0.00035704,30]
[422296907,1778797848000,-500.0,0.00035704,30]
[422296915,1778797848000,-153.24627148,0.00035761,7]
[422296916,1778797848000,-150.0,0.00035764,7]
[422296917,1778797848000,-150.0,0.0003579,7]
[422296905,1778797848000,-153.24627148,0.00035684,7]
[422296899,1778797848000,-214.80165755,0.00035628,120]
[422296903,1778797848000,-150.0,0.0003566,7]
[422296904,1778797848000,-150.0,0.00035684,7]
[422296911,1778797848000,-301.78,0.00035723,2]
[422296922,1778797848000,-153.24627148,0.00035915,7]
[422296912,1778797848000,-502.17,0.00035723,2]
[422296913,1778797848000,-174.4,0.00035723,2]
[422296914,1778797848000,-150.0,0.0003575,7]
[422296918,1778797848000,-153.24627148,0.000358,7]
[422296920,1778797848000,-150.0,0.00035858,7]
[422296931,1778797848000,-150.0,0.00035981,2]
[422296919,1778797848000,-153.24627148,0.00035838,7]
[422296923,1778797848000,-150.0,0.00035932,7]
[422296926,1778797848000,-2107.8980844,0.0003594,2]
[422296924,1778797848000,-150.0,0.00035932,7]
[422296921,1778797848000,-153.24627148,0.00035877,7]
[422296930,1778797848000,-150.0,0.00035956,7]
[422296910,1778797848000,-153.24627148,0.00035723,7]
[422296902,1778797848000,-163.89776066,0.00035659,30]
[422296928,1778797848000,-153.24627148,0.00035954,7]
[422296897,1778797848000,-284.4,0.00035623,30]
[422296875,1778797848000,-189.59,0.00035597,30]
[422296872,1778797848000,-500.0,0.00035592,30]
[422296877,1778797848000,-500.0,0.00035616,120]
[422296874,1778797848000,-189.6,0.00035597,30]
[422296876,1778797848000,-153.24627148,0.00035607,7]
[422296873,1778797848000,-189.6,0.00035597,30]
[422296878,1778797848000,-500.0,0.00035616,120]
[422296880,1778797848000,-500.0,0.00035616,120]
[422296890,1778797848000,-500.0,0.00035616,120]
[422296882,1778797848000,-500.0,0.00035616,120]
[422296879,1778797848000,-500.0,0.00035616,120]
[422296883,1778797848000,-500.0,0.00035616,120]
[422296881,1778797848000,-500.0,0.00035616,120]
[422296886,1778797848000,-500.0,0.00035616,120]
[422296884,1778797848000,-500.0,0.00035616,120]
[422296885,1778797848000,-500.0,0.00035616,120]
[422296889,1778797848000,-500.0,0.00035616,120]
[422296887,1778797848000,-500.0,0.00035616,120]
[422296888,1778797848000,-500.0,0.00035616,120]
[422296891,1778797848000,-500.0,0.00035616,120]
[422296894,1778797848000,-522.47351871,0.00035616,120]
[422296896,1778797848000,-237.97922959,0.00035616,2]
[422296893,1778797848000,-500.0,0.00035616,120]
[422296895,1778797848000,-749.99,0.00035616,2]
[422296892,1778797848000,-500.0,0.00035616,120]
[422296900,1778797848000,-607.0,0.0003563,13]
[422296901,1778797848000,-153.24627148,0.00035646,7]
[422296898,1778797848000,-150.0,0.00035624,7]
[422296933,1778797848000,-153.24627148,0.00035992,7]
[422296949,1778797848000,-163.89776066,0.00036126,30]
[422296932,1778797848000,-150.0,0.00035992,7]
[422296959,1778797848000,-153.24627148,0.00036223,7]
[422296967,1778797848000,-153.24627148,0.00036377,7]
[422296969,1778797848000,-200.0,0.00036398,5]
[422296970,1778797848000,-200.0,0.00036398,5]
[422296968,1778797848000,-200.0,0.00036396,5]
[422296971,1778797848000,-19126.14,0.000364,2]
[422296975,1778797848000,-153.24627148,0.00036454,7]
[422296974,1778797848000,-150.0,0.00036453,7]
[422296972,1778797848000,-150.0,0.00036416,7]
[422296973,1778797848000,-153.24627148,0.00036416,7]
[422296976,1778797848000,-150.0,0.00036476,7]
[422296979,1778797848000,-2209.03,0.000365,30]
[422296965,1778797848000,-150.0,0.00036351,7]
[422296982,1778797848000,-153.24627148,0.00036531,7]
[422296993,1778797848000,-211.0,0.00036539,30]
[422296984,1778797848000,-208.0,0.00036539,30]
[422296992,1778797848000,-300.0,0.00036539,30]
[422296981,1778797848000,-1078.54,0.000365,7]
[422296978,1778797848000,-153.24627148,0.00036493,7]
[422296989,1778797848000,-3041.0,0.00036539,30]
[422296980,1778797848000,-1817.69,0.000365,14]
[422296991,1778797848000,-4071.0,0.00036539,30]
[422296994,1778797848000,-817.0,0.00036539,30]
[422296998,1778797848000,-255.0,0.00036539,30]
[422296996,1778797848000,-348.0,0.00036539,30]
[422296943,1778797848000,-153.24627148,0.00036069,7]
[422296977,1778797848000,-150.0,0.00036476,7]
[422296963,1778797848000,-153.24627148,0.000363,7]
[422296986,1778797848000,-384.0,0.00036539,30]
[422296961,1778797848000,-150.0,0.00036287,7]
[422296966,1778797848000,-150.0,0.00036377,7]
[422296936,1778797848000,-153.24627148,0.00036031,7]
[422296934,1778797848000,-150.0,0.00036,2]
[422296940,1778797848000,-1223.0,0.00036059,2]
[422296935,1778797848000,-150.0,0.00036031,7]
[422296937,1778797848000,-1000.0,0.00036048,2]
[422296938,1778797848000,-1000.0,0.00036048,2]
[422296941,1778797848000,-3630.0,0.00036059,2]
[422296942,1778797848000,-152.141,0.00036068,120]
[422296948,1778797848000,-150.0,0.00036121,7]
[422296955,1778797848000,-150.0,0.00036204,7]
[422296945,1778797848000,-2888.05498505,0.00036103,2]
[422296944,1778797848000,-2810.45,0.000361,30]
[422296939,1778797848000,-150.0,0.00036058,7]
[422296960,1778797848000,-153.24627148,0.00036262,7]
[422296958,1778797848000,-163.0,0.0003622,11]
[422296946,1778797848000,-153.24627148,0.00036108,7]
[422296964,1778797848000,-153.24627148,0.00036339,7]
[422296962,1778797848000,-150.0,0.00036295,7]
[422296956,1778797848000,-150.0,0.00036204,7]
[422296953,1778797848000,-607.0,0.00036192,14]
[422296957,1778797848000,-150.0,0.00036204,7]
[422296951,1778797848000,-2458.5,0.00036153,30]
[422296950,1778797848000,-153.24627148,0.00036146,7]
[422296952,1778797848000,-153.24627148,0.00036185,7]
[422296947,1778797848000,-150.0,0.00036113,7]
[422296954,1778797848000,-150.0,0.00036204,7]
[422297039,1778797849000,-150.0,0.0003695,7]
[422297048,1778797849000,-300.0,0.00037009,2]
[422297041,1778797849000,-198.83871279,0.00036978,60]
[422297038,1778797849000,-163.0,0.00036945,11]
[422297036,1778797849000,-153.24627148,0.00036916,7]
[422297034,1778797849000,-153.24627148,0.00036878,7]
[422297028,1778797849000,-152.0,0.00036767,7]
[422297030,1778797849000,-153.24627148,0.00036801,7]
[422297026,1778797849000,-607.0,0.00036753,14]
[422297025,1778797849000,-150.0,0.00036749,7]
[422297040,1778797849000,-153.24627148,0.00036955,7]
[422297029,1778797849000,-150.0,0.00036784,7]
[422297042,1778797849000,-153.24627148,0.00036993,7]
[422297052,1778797849000,-300.0,0.00037009,2]
[422297037,1778797849000,-150.0,0.00036937,7]
[422297047,1778797849000,-300.0,0.00037009,2]
[422297045,1778797849000,-300.10975184,0.00037009,2]
[422297043,1778797849000,-150.0,0.00037,2]
[422297044,1778797849000,-181.038,0.00037,2]
[422297049,1778797849000,-300.0,0.00037009,2]
[422297051,1778797849000,-300.0,0.00037009,2]
[422297063,1778797849000,-300.57306762,0.00037009,2]
[422297062,1778797849000,-300.0,0.00037009,2]
[422297061,1778797849000,-300.0,0.00037009,2]
[422297050,1778797849000,-604.46475032,0.00037009,2]
[422297053,1778797849000,-300.0,0.00037009,2]
[422297027,1778797849000,-153.24627148,0.00036762,7]
[422297046,1778797849000,-300.0,0.00037009,2]
[422297024,1778797849000,-200.0,0.00036739,2]
[422297005,1778797849000,-153.24627148,0.00036608,7]
[422297035,1778797849000,-150.0,0.00036897,7]
[422297060,1778797849000,-301.79443579,0.00037009,2]
[422297008,1778797849000,-150.0,0.00036644,7]
[422297006,1778797849000,-170.28,0.00036615,10]
[422297007,1778797849000,-150.0,0.00036618,7]
[422297003,1778797849000,-521.0,0.00036592,30]
[422297001,1778797849000,-150.0,0.00036551,7]
[422296999,1778797849000,-428.0,0.00036539,30]
[422297004,1778797849000,-163.89776069,0.00036593,30]
[422297002,1778797849000,-153.24627148,0.0003657,7]
[422297000,1778797849000,-1953.0,0.00036539,30]
[422297021,1778797849000,-200.0,0.00036739,2]
[422297012,1778797849000,-153.24627148,0.00036685,7]
[422297009,1778797849000,-153.24627148,0.00036647,7]
[422297016,1778797849000,-153.24627148,0.00036724,7]
[422297017,1778797849000,-500.0,0.00036739,2]
[422297019,1778797849000,-449.0,0.00036739,2]
[422297010,1778797849000,-150.0,0.00036658,7]
[422297014,1778797849000,-500.0,0.00036686,120]
[422297011,1778797849000,-500.0,0.0003666,36]
[422297020,1778797849000,-200.0,0.00036739,2]
[422297018,1778797849000,-500.0,0.00036739,2]
[422297013,1778797849000,-516.72905,0.00036686,120]
[422297015,1778797849000,-150.0,0.00036724,7]
[422297023,1778797849000,-200.0,0.00036739,2]
[422297022,1778797849000,-200.0,0.00036739,2]
[422297031,1778797849000,-150.0,0.00036839,7]
[422297032,1778797849000,-150.0,0.00036839,7]
[422297033,1778797849000,-153.24627148,0.00036839,7]
[422297058,1778797849000,-726.07109283,0.00037009,2]
[422297054,1778797849000,-527.74756033,0.00037009,2]
[422297119,1778797849000,-300.0,0.00037009,2]
[422297094,1778797849000,-451.91661156,0.00037009,2]
[422297095,1778797849000,-300.0,0.00037009,2]
[422297093,1778797849000,-300.0,0.00037009,2]
[422297096,1778797849000,-300.0,0.00037009,2]
[422297097,1778797849000,-300.0,0.00037009,2]
[422297101,1778797849000,-484.1034747,0.00037009,2]
[422297102,1778797849000,-309.84439532,0.00037009,2]
[422297099,1778797849000,-300.0,0.00037009,2]
[422297103,1778797849000,-300.0,0.00037009,2]
[422297100,1778797849000,-300.0,0.00037009,2]
[422297104,1778797849000,-300.0,0.00037009,2]
[422297106,1778797849000,-300.0,0.00037009,2]
[422297105,1778797849000,-300.0,0.00037009,2]
[422297092,1778797849000,-577.18639742,0.00037009,2]
[422297108,1778797849000,-300.0,0.00037009,2]
[422297110,1778797849000,-1094.76341147,0.00037009,2]
[422297109,1778797849000,-1246.37277247,0.00037009,2]
[422297116,1778797849000,-300.0,0.00037009,2]
[422297111,1778797849000,-300.0,0.00037009,2]
[422297115,1778797849000,-300.0,0.00037009,2]
[422297112,1778797849000,-300.0,0.00037009,2]
[422297114,1778797849000,-300.0,0.00037009,2]
[422297113,1778797849000,-300.0,0.00037009,2]
[422297117,1778797849000,-300.0,0.00037009,2]
[422297118,1778797849000,-300.0,0.00037009,2]
[422297055,1778797849000,-300.0,0.00037009,2]
[422297120,1778797849000,-300.0,0.00037009,2]
[422297121,1778797849000,-300.0,0.00037009,2]
[422297107,1778797849000,-300.0,0.00037009,2]
[422297086,1778797849000,-300.0,0.00037009,2]
[422297098,1778797849000,-300.0,0.00037009,2]
[422297087,1778797849000,-310.90590822,0.00037009,2]
[422297057,1778797849000,-893.41080806,0.00037009,2]
[422297085,1778797849000,-300.0,0.00037009,2]
[422297059,1778797849000,-300.0,0.00037009,2]
[422297064,1778797849000,-300.0,0.00037009,2]
[422297068,1778797849000,-300.0,0.00037009,2]
[422297066,1778797849000,-300.0,0.00037009,2]
[422297075,1778797849000,-300.0,0.00037009,2]
[422297071,1778797849000,-1912.42447208,0.00037009,2]
[422297072,1778797849000,-343.9837244,0.00037009,2]
[422297076,1778797849000,-300.0,0.00037009,2]
[422297067,1778797849000,-300.0,0.00037009,2]
[422297065,1778797849000,-300.0,0.00037009,2]
[422297070,1778797849000,-300.0,0.00037009,2]
[422297077,1778797849000,-300.0,0.00037009,2]
[422297056,1778797849000,-1066.9267668,0.00037009,2]
[422297073,1778797849000,-300.0,0.00037009,2]
[422297069,1778797849000,-949.00925633,0.00037009,2]
[422297083,1778797849000,-1756.09027805,0.00037009,2]
[422297084,1778797849000,-300.0,0.00037009,2]
[422297080,1778797849000,-300.0,0.00037009,2]
[422297090,1778797849000,-463.8581435,0.00037009,2]
[422297081,1778797849000,-864.46544763,0.00037009,2]
[422297088,1778797849000,-300.0,0.00037009,2]
[422297091,1778797849000,-300.0,0.00037009,2]
[422297078,1778797849000,-1147.19266559,0.00037009,2]
[422297089,1778797849000,-300.0,0.00037009,2]
[422297079,1778797849000,-309.59330386,0.00037009,2]
[422297074,1778797849000,-526.89972735,0.00037009,2]
[422297082,1778797849000,-300.0,0.00037009,2]
[422297162,1778797850000,-300.0,0.00037009,2]
[422297158,1778797850000,-343.9837244,0.00037009,2]
[422297157,1778797850000,-300.0,0.00037009,2]
[422297159,1778797850000,-526.89972735,0.00037009,2]
[422297160,1778797850000,-300.0,0.00037009,2]
[422297165,1778797850000,-300.0,0.00037009,2]
[422297155,1778797850000,-300.0,0.00037009,2]
[422297154,1778797850000,-949.00925633,0.00037009,2]
[422297150,1778797850000,-300.0,0.00037009,2]
[422297161,1778797850000,-300.0,0.00037009,2]
[422297152,1778797850000,-370.16929588,0.00037009,2]
[422297156,1778797850000,-1912.42447208,0.00037009,2]
[422297166,1778797850000,-864.46544763,0.00037009,2]
[422297169,1778797850000,-300.0,0.00037009,2]
[422297164,1778797850000,-309.59330386,0.00037009,2]
[422297167,1778797850000,-300.0,0.00037009,2]
[422297168,1778797850000,-1756.09027805,0.00037009,2]
[422297170,1778797850000,-300.0,0.00037009,2]
[422297176,1778797850000,-300.0,0.00037009,2]
[422297177,1778797850000,-577.18639742,0.00037009,2]
[422297171,1778797850000,-300.0,0.00037009,2]
[422297172,1778797850000,-300.0,0.00037009,2]
[422297174,1778797850000,-300.0,0.00037009,2]
[422297173,1778797850000,-310.90590822,0.00037009,2]
[422297175,1778797850000,-463.8581435,0.00037009,2]
[422297151,1778797850000,-300.0,0.00037009,2]
[422297163,1778797850000,-1147.19266559,0.00037009,2]
[422297145,1778797850000,-301.89255312,0.00037009,2]
[422297179,1778797850000,-451.91661156,0.00037009,2]
[422297149,1778797850000,-300.0,0.00037009,2]
[422297122,1778797850000,-300.0,0.00037009,2]
[422297123,1778797850000,-300.0,0.00037009,2]
[422297125,1778797850000,-492.69539266,0.00037009,2]
[422297124,1778797850000,-300.0,0.00037009,2]
[422297129,1778797850000,-300.0,0.00037009,2]
[422297126,1778797850000,-300.0,0.00037009,2]
[422297128,1778797850000,-300.0,0.00037009,2]
[422297127,1778797850000,-300.0,0.00037009,2]
[422297131,1778797850000,-604.46475032,0.00037009,2]
[422297136,1778797850000,-300.0,0.00037009,2]
[422297135,1778797850000,-527.74756033,0.00037009,2]
[422297132,1778797850000,-300.0,0.00037009,2]
[422297153,1778797850000,-300.0,0.00037009,2]
[422297133,1778797850000,-300.0,0.00037009,2]
[422297134,1778797850000,-300.0,0.00037009,2]
[422297141,1778797850000,-726.07109283,0.00037009,2]
[422297139,1778797850000,-300.0,0.00037009,2]
[422297137,1778797850000,-1066.9267668,0.00037009,2]
[422297138,1778797850000,-893.41080806,0.00037009,2]
[422297140,1778797850000,-313.04691013,0.00037009,2]
[422297142,1778797850000,-300.0,0.00037009,2]
[422297146,1778797850000,-300.0,0.00037009,2]
[422297147,1778797850000,-300.57306762,0.00037009,2]
[422297143,1778797850000,-301.79443579,0.00037009,2]
[422297148,1778797850000,-300.0,0.00037009,2]
[422297144,1778797850000,-300.0,0.00037009,2]
[422297130,1778797850000,-300.0,0.00037009,2]
[422297178,1778797850000,-300.0,0.00037009,2]
[422297187,1778797850000,-300.0,0.00037046,2]
[422297180,1778797850000,-150.0,0.00037021,7]
[422297213,1778797850000,-163.0,0.0003714,11]
[422297212,1778797850000,-150.0,0.00037115,7]
[422297224,1778797850000,-150.0,0.0003723,7]
[422297215,1778797850000,-500.0,0.0003715,5]
[422297223,1778797850000,-153.24627148,0.00037224,7]
[422297214,1778797850000,-153.24627148,0.00037147,7]
[422297216,1778797850000,-150.0,0.00037157,7]
[422297218,1778797850000,-185.42511022,0.000372,120]
[422297222,1778797850000,-150.0,0.00037202,7]
[422297221,1778797850000,-185.42511022,0.000372,120]
[422297220,1778797850000,-185.42511022,0.000372,120]
[422297219,1778797850000,-185.42511022,0.000372,120]
[422297210,1778797850000,-322.44,0.000371,15]
[422297226,1778797850000,-150.0,0.00037263,30]
[422297228,1778797850000,-150.0,0.00037281,7]
[422297237,1778797850000,-153.24627148,0.00037417,7]
[422297227,1778797850000,-153.24627148,0.00037263,7]
[422297236,1778797850000,-150.0,0.00037417,7]
[422297230,1778797850000,-153.24627148,0.00037301,7]
[422297229,1778797850000,-150.0,0.00037293,7]
[422297231,1778797850000,-607.0,0.00037315,15]
[422297232,1778797850000,-153.24627148,0.0003734,7]
[422297234,1778797850000,-150.0,0.00037384,7]
[422297235,1778797850000,-151.0,0.000374,5]
[422297233,1778797850000,-153.24627148,0.00037378,7]
[422297181,1778797850000,-150.0,0.00037021,7]
[422297225,1778797850000,-150.0,0.00037243,7]
[422297208,1778797850000,-153.24627148,0.0003707,7]
[422297217,1778797850000,-153.24627148,0.00037186,7]
[422297203,1778797850000,-300.0,0.00037046,2]
[422297183,1778797850000,-434.0663,0.00037034,2]
[422297209,1778797850000,-1107.0,0.00037085,2]
[422297182,1778797850000,-153.24627148,0.00037032,7]
[422297186,1778797850000,-300.0,0.00037046,2]
[422297185,1778797850000,-300.0,0.00037046,2]
[422297238,1778797850000,-150.0,0.00037447,7]
[422297188,1778797850000,-300.0,0.00037046,2]
[422297184,1778797850000,-158.0,0.00037035,3]
[422297193,1778797850000,-300.0,0.00037046,2]
[422297192,1778797850000,-300.0,0.00037046,2]
[422297194,1778797850000,-300.0,0.00037046,2]
[422297191,1778797850000,-1094.76341147,0.00037046,2]
[422297195,1778797850000,-300.0,0.00037046,2]
[422297189,1778797850000,-300.0,0.00037046,2]
[422297196,1778797850000,-300.0,0.00037046,2]
[422297206,1778797850000,-492.69539266,0.00037046,2]
[422297190,1778797850000,-300.0,0.00037046,2]
[422297207,1778797850000,-150.0,0.0003707,7]
[422297200,1778797850000,-300.0,0.00037046,2]
[422297211,1778797850000,-153.24627148,0.00037109,7]
[422297204,1778797850000,-300.0,0.00037046,2]
[422297205,1778797850000,-300.0,0.00037046,2]
[422297201,1778797850000,-300.0,0.00037046,2]
[422297198,1778797850000,-300.0,0.00037046,2]
[422297197,1778797850000,-300.0,0.00037046,2]
[422297199,1778797850000,-300.0,0.00037046,2]
[422297202,1778797850000,-300.0,0.00037046,2]
[422297284,1778797851000,-151.0,0.00037978,60]
[422297286,1778797851000,-5000.0,0.00037984,2]
[422297280,1778797851000,-150.0,0.00037936,7]
[422297287,1778797851000,-5000.0,0.00037984,2]
[422297278,1778797851000,-153.24627148,0.00037917,7]
[422297272,1778797851000,-150.0,0.00037816,7]
[422297276,1778797851000,-153.24627148,0.00037879,7]
[422297273,1778797851000,-150.0,0.00037837,7]
[422297271,1778797851000,-153.24627148,0.00037802,7]
[422297269,1778797851000,-2209.03,0.000378,30]
[422297277,1778797851000,-150.0,0.000379,2]